bitfinex/quotes_ETHUSD_20251015
["timestamp","ask_amount","ask_price","bid_price","bid_amount"]
[1760511567377,0.4626,4123.2,4123.0,2.42539323]
[1760511567678,0.4626,4123.2,4122.3,0.002]
[1760511567981,0.4626,4123.2,4123.0,2.42541689]
[1760511568187,2.453,4123.3,4123.0,2.42541689]
[1760511568350,0.4626,4123.1,4123.0,2.42541689]
[1760511568790,0.4626,4123.1,4123.0,2.54621689]
[1760511568992,0.75416,4123.1,4123.0,2.54621838]
[1760511569873,0.4626,4123.1,4123.0,2.54621838]
[1760511570048,0.4626,4123.1,4123.0,0.1208]
[1760511570248,2.6486,4123.1,4123.0,2.54621838]
[1760511570649,5.07396121,4123.1,4122.4,2.42577139]
[1760511570850,0.2262,4122.5,4122.4,2.42575572]
[1760511571085,2.6782,4122.5,4122.4,2.42575572]
[1760511571652,3.1408,4122.5,4122.4,2.42575572]
[1760511571852,3.1408,4122.5,4122.3,0.002]
[1760511572192,2.452,4122.5,4122.4,2.42577139]
[1760511573066,2.452,4122.5,4122.4,5.3951476]
[1760511573583,0.001,4123.3,4123.2,2.42530073]
[1760511573751,2.453,4123.3,4122.5,1.92]
[1760511573950,2.9156,4123.3,4123.2,2.42530073]
[1760511577982,0.001,4123.3,4123.2,2.42530073]
[1760511578290,2.9156,4123.3,4123.2,2.42530073]
[1760511578681,2.9156,4123.3,4122.9,2.96937621]
[1760511578996,2.9156,4123.3,4123.2,2.42530073]
[1760511580197,5.1016,4123.3,4123.2,2.42530073]
[1760511580493,4.639,4123.3,4123.2,2.42530073]
[1760511581698,4.639,4123.3,4123.1,0.1208]
[1760511581699,3.9590457,4123.3,4123.1,0.1208]
[1760511581908,0.6442957,4123.2,4122.6,4.34564412]
[1760511582199,0.001,4123.3,4123.1,2.96937621]
[1760511582420,0.001,4123.3,4123.2,2.42530073]
[1760511582591,2.346,4123.3,4123.2,2.42530073]
[1760511590221,1.093,4123.7,4123.6,3.05866547]
[1760511590512,4.637,4123.7,4123.6,8.41754168]
[1760511590718,4.637,4123.7,4123.6,7.78394168]
[1760511590876,4.637,4123.7,4123.6,7.31444168]
[1760511591609,4.637,4123.7,4123.6,7.78394168]
[1760511591988,4.637,4123.7,4123.6,7.31444168]
[1760511592215,4.637,4123.7,4123.6,7.43524168]
[1760511593229,3.3623,4123.7,4123.6,0.1208]
[1760511593417,3.3623,4123.7,4123.6,2.54586547]
[1760511594022,3.3623,4123.7,4123.6,0.1208]
[1760511596131,3.3623,4123.7,4123.2,0.1208]
[1760511596132,3.88534446,4123.7,4123.2,0.1208]
[1760511596338,3.3623,4123.7,4123.2,0.1208]
[1760511596516,0.61320948,4123.6,4123.2,0.1208]
[1760511596716,0.4476,4123.5,4123.2,0.1208]
[1760511596916,0.4476,4123.5,4123.2,2.54609339]
[1760511597237,0.4476,4123.4,4123.2,2.54609339]
[1760511597535,2.8996,4123.3,4123.2,2.54609339]
[1760511598245,0.61320948,4123.6,4123.2,2.54609339]
[1760511598436,2.42437128,4124.8,4123.2,2.54609339]
[1760511598437,2.17923493,4126.4,4124.5,2.56]
[1760511598738,0.12691368,4127.4,4126.6,0.6336]
[1760511598904,0.224,4127.9,4126.9,2.5536]
[1760511599105,0.224,4127.9,4127.4,1.92]
[1760511599333,0.4476,4127.8,4127.4,0.49135792]
[1760511599542,0.224,4127.9,4126.8,1.29476776]
[1760511599543,0.4476,4127.7,4126.8,1.29476776]
[1760511599751,0.4476,4127.7,4127.3,2.42284626]
[1760511599907,0.4476,4127.7,4127.0,2.42302732]
[1760511599908,1.027,4127.6,4127.2,2.42295016]
[1760511600102,2.184,4127.5,4126.7,0.4476]
[1760511600436,2.184,4127.5,4127.0,2.42300983]
[1760511600738,2.6316,4127.5,4126.6,0.72878949]
[1760511601109,2.6316,4127.5,4126.9,2.42312121]
[1760511601310,2.184,4127.5,4127.0,2.42306714]
[1760511601604,2.184,4127.5,4126.9,2.42312299]
[1760511602033,2.184,4127.5,4126.6,0.72878949]
[1760511602230,2.184,4127.5,4127.0,2.4230589]
[1760511602429,2.184,4127.5,4126.8,4.98732227]
[1760511602834,2.184,4127.5,4126.8,0.64417645]
[1760511603040,5.21489844,4127.5,4126.8,0.64417645]
[1760511603350,0.224,4126.9,4126.4,0.64417645]
[1760511603554,2.9276,4126.8,4126.3,0.64417645]
[1760511603848,2.9276,4126.8,4126.3,1.13377277]
[1760511604212,2.48,4126.8,4126.4,1.92]
[1760511604451,2.48,4126.8,4126.7,2.42324375]
[1760511604670,0.001,4127.7,4126.7,0.43432438]
[1760511604828,0.76,4127.6,4127.5,1.92]
[1760511605022,0.76,4127.6,4127.5,4.34277407]
[1760511605252,0.001,4127.7,4127.5,4.34277407]
[1760511605455,0.001,4127.7,4127.6,4.77891537]
[1760511605628,0.224,4128.8,4128.4,2.42220974]
[1760511605948,0.224,4129.0,4127.7,1.92]
[1760511605949,0.224,4129.0,4128.3,1.92]
[1760511606132,0.224,4129.0,4128.4,2.4222444]
[1760511606332,0.224,4129.0,4128.2,9.45496026]
[1760511606635,2.42213822,4128.6,4127.3,1.92]
[1760511606817,0.68981382,4128.5,4127.2,0.1456]
[1760511607143,2.42232218,4128.3,4127.2,2.42293034]
[1760511607353,2.9276,4128.2,4127.1,0.1456]
[1760511607545,2.48,4128.1,4127.9,11.87749604]
[1760511607747,2.48,4128.0,4127.9,11.87749956]
[1760511607955,0.4476,4128.8,4128.0,1.92]
[1760511608139,2.48,4128.7,4128.0,1.92]
[1760511608460,2.48,4128.7,4128.2,2.42234841]
[1760511608657,2.48,4128.7,4128.1,0.1528]
[1760511608859,2.48,4128.7,4128.6,0.1208]
[1760511609024,2.48,4128.7,4128.5,2.42216875]
[1760511609354,2.48,4128.7,4128.5,2.42216299]
[1760511609656,2.48,4128.7,4128.6,2.42212856]
[1760511609827,2.64558153,4129.6,4128.8,1.92]
[1760511609828,0.224,4129.6,4128.8,1.92]
[1760511610030,2.48,4129.5,4129.0,2.42185008]
[1760511610225,2.184,4129.4,4128.3,2.3511]
[1760511610426,2.184,4129.4,4128.5,1.92]
[1760511610652,2.184,4129.4,4128.9,2.42194552]
[1760511610994,2.6127,4129.4,4128.9,2.42194552]
[1760511611353,2.6127,4129.4,4128.6,4.34212231]
[1760511611354,0.4287,4129.3,4128.8,2.42199565]
[1760511611555,0.4287,4129.2,4128.8,2.42199565]
[1760511611858,0.4287,4129.2,4128.2,0.72849571]
[1760511611859,0.2242,4128.9,4127.9,0.8553291]
[1760511612027,2.48,4128.8,4127.6,0.8553291]
[1760511612229,0.4287,4128.7,4127.3,1.15973195]
[1760511612426,0.2242,4127.4,4126.5,1.29476776]
[1760511612647,0.2242,4127.4,4126.1,4.50070766]
[1760511612648,4.9029358,4127.3,4126.1,4.5006719]
[1760511612830,0.94141358,4127.2,4126.1,0.1528]
[1760511613174,0.51271358,4127.2,4126.1,0.1528]
[1760511613574,0.4287,4127.1,4126.1,0.1528]
[1760511613760,0.4287,4127.1,4126.0,0.1456]
[1760511613933,2.85181264,4127.0,4126.0,2.42362652]
[1760511614271,2.93566638,4127.2,4126.1,2.57638813]
[1760511614272,3.573,4126.9,4126.1,2.57638813]
[1760511614565,0.4287,4126.8,4125.6,1.92]
[1760511614866,0.4287,4126.8,4126.2,2.42351999]
[1760511615473,0.4287,4126.8,4125.5,9.43475877]
[1760511615771,2.42359532,4126.2,4125.0,2.57703331]
[1760511615943,3.15305953,4126.1,4125.0,0.1528]
[1760511616260,2.482,4126.0,4125.0,2.0728]
[1760511616467,4.90570284,4126.0,4125.0,0.1528]
[1760511616649,0.4287,4125.9,4124.6,0.1528]
[1760511616850,0.4287,4125.9,4124.5,2.42452141]
[1760511617165,3.22600595,4125.8,4124.7,2.42440332]
[1760511617369,0.4287,4125.7,4124.1,0.1528]
[1760511617554,0.4287,4125.7,4124.9,2.42428855]
[1760511617734,2.79730595,4125.8,4125.0,2.42423857]
[1760511617934,2.42388364,4125.7,4124.8,2.42434921]
[1760511618135,0.56498896,4125.7,4124.6,1.92]
[1760511618334,2.98882119,4125.7,4124.8,2.4243159]
[1760511618569,0.56498896,4125.7,4124.5,0.4311]
[1760511618867,2.482,4125.8,4125.3,0.1208]
[1760511619058,0.6529,4126.7,4125.4,0.4311]
[1760511619243,0.796,4126.6,4126.1,2.42356048]
[1760511619573,0.4287,4127.1,4126.1,0.1528]
[1760511619773,1.879,4127.0,4126.5,0.1208]
[1760511619974,0.2242,4126.9,4126.5,0.1208]
[1760511620180,1.092,4126.8,4126.5,0.1208]
[1760511620334,0.2242,4127.4,4126.8,0.1208]
[1760511620535,2.482,4127.3,4127.1,0.1208]
[1760511621055,0.4287,4127.2,4127.1,0.1208]
[1760511621264,0.4287,4127.2,4126.8,0.1208]
[1760511621451,2.482,4127.3,4126.8,2.54398477]
[1760511621838,0.2242,4126.9,4126.8,0.1208]
[1760511622037,0.2242,4126.9,4125.3,0.4311]
[1760511622236,2.42328939,4126.7,4126.3,0.1208]
[1760511622470,2.9117,4126.6,4126.3,0.1208]
[1760511622672,0.4287,4126.5,4126.3,0.1208]
[1760511622877,2.483,4126.6,4126.3,0.1208]
[1760511623352,2.483,4126.5,4126.4,2.42341993]
[1760511623549,0.99654229,4127.3,4126.8,0.1208]
[1760511623875,3.28814316,4127.2,4126.5,2.42331997]
[1760511624077,0.2242,4126.9,4126.8,0.1208]
[1760511624683,2.85944316,4127.2,4126.8,0.1208]
[1760511625182,0.2242,4126.9,4126.8,0.1208]
[1760511626048,0.6529,4126.9,4126.8,0.1208]
[1760511626789,2.483,4126.9,4126.8,4.46398503]
[1760511626950,2.483,4126.9,4126.8,2.54394095]
[1760511627358,2.483,4126.9,4126.8,1.43262047]
[1760511627596,0.4287,4127.9,4127.3,2.4228901]
[1760511627898,2.483,4127.8,4127.4,0.1208]
[1760511628242,2.483,4127.8,4127.4,2.54361956]
[1760511628445,2.483,4127.8,4127.5,2.42277377]
[1760511628972,2.483,4127.8,4127.4,0.1208]
[1760511629141,2.9117,4127.8,4127.4,0.1208]
[1760511629340,3.05091308,4127.8,4127.4,0.1208]
[1760511629574,3.05091308,4127.8,4126.2,0.4311]
[1760511629575,2.85135787,4127.7,4126.1,0.1528]
[1760511629752,2.42284647,4127.4,4126.9,0.1208]
[1760511629954,4.90590661,4127.3,4126.2,2.42349259]
[1760511630264,4.90590661,4127.3,4126.6,0.1208]
[1760511630265,2.184,4127.2,4126.6,0.1208]
[1760511630466,2.42330247,4126.6,4125.2,0.1456]
[1760511630775,0.2242,4126.7,4125.2,0.1456]
[1760511630776,2.6028,4126.5,4125.3,0.4311]
[1760511630976,2.482,4126.4,4126.2,0.1208]
[1760511631347,2.9107,4126.4,4126.2,0.1208]
[1760511631540,2.482,4126.4,4126.2,0.1208]
[1760511632064,2.9117,4126.4,4125.6,2.4238361]
[1760511632464,5.8910505,4126.4,4125.2,0.1456]
[1760511633475,3.03893057,4126.4,4125.7,2.42377853]
[1760511633773,5.8910505,4126.4,4125.5,2.42393224]
[1760511633978,5.8910505,4126.4,4125.7,2.42382248]
[1760511634177,3.03893057,4126.4,4125.5,2.4239328]
[1760511634363,5.8910505,4126.4,4125.2,0.1456]
[1760511634566,5.8910505,4126.4,4125.5,2.4239472]
[1760511634877,5.8910505,4126.4,4125.6,2.42387702]
[1760511635072,5.8910505,4126.4,4125.6,2.42387213]
[1760511635278,5.8910505,4126.4,4125.7,2.42381706]
[1760511635279,3.03893057,4126.4,4125.7,2.42381706]
[1760511635476,2.483,4126.4,4125.9,2.42367037]
[1760511635773,2.483,4126.4,4125.9,2.42371213]
[1760511635952,0.2242,4126.7,4125.5,0.4311]
[1760511636157,0.2242,4126.7,4125.3,1.92]
[1760511636158,2.484,4126.6,4126.3,2.42547375]
[1760511636354,2.484,4126.5,4126.3,0.002]
[1760511636665,2.484,4126.4,4126.3,0.002]
[1760511637070,2.9127,4126.4,4126.3,0.002]
[1760511637277,2.484,4126.4,4126.3,0.002]
[1760511637477,2.9127,4126.4,4126.3,0.002]
[1760511637655,3.20397,4126.4,4125.4,1.92]
[1760511637855,0.6336,4125.1,4123.3,0.002]
[1760511638067,2.42412489,4125.2,4123.3,0.002]
[1760511638068,0.2242,4123.4,4123.3,0.002]
[1760511638289,2.7232,4123.4,4123.3,0.002]
[1760511639491,0.72959061,4123.9,4123.3,0.002]
[1760511639492,0.4287,4123.7,4123.3,0.002]
[1760511639703,2.499,4123.6,4123.3,0.002]
[1760511639992,2.498,4123.5,4123.3,0.002]
[1760511640196,4.682,4123.4,4123.3,0.002]
[1760511640694,1.092,4123.4,4123.3,0.002]
[1760511640874,4.682,4123.4,4123.3,0.002]
[1760511641490,5.9035431,4123.4,4123.3,0.002]
[1760511643169,7.8235431,4123.4,4123.3,0.002]
[1760511644290,5.3877831,4123.4,4123.3,0.002]
[1760511644489,2.6178,4123.4,4123.3,0.002]
[1760511644903,5.5085831,4123.4,4123.3,0.002]
[1760511645208,5.0429831,4123.4,4123.3,0.002]
[1760511647698,2.6178,4123.4,4123.3,0.002]
[1760511647871,5.0429831,4123.4,4123.3,0.002]
[1760511648198,2.6178,4123.4,4123.3,0.002]
[1760511648577,5.5085831,4123.4,4123.3,0.002]
[1760511648779,0.2326,4124.9,4123.5,2.42507737]
[1760511649094,2.224,4124.8,4123.6,0.28586774]
[1760511649293,2.224,4124.8,4123.3,0.002]
[1760511649294,2.42449126,4124.6,4123.4,2.42517169]
[1760511649513,2.224,4124.8,4123.3,0.4336]
[1760511649682,2.42448001,4124.6,4123.3,0.4336]
[1760511649884,2.42442088,4124.7,4123.9,2.42484718]
[1760511650118,2.42458259,4124.5,4123.7,2.42499372]
[1760511650408,2.498,4124.4,4123.8,2.42494366]
[1760511651284,2.498,4124.4,4123.8,2.42489593]
[1760511651802,2.498,4124.4,4123.7,2.42500557]
[1760511652002,2.498,4124.4,4123.9,2.42484255]
[1760511652930,0.4656,4125.0,4123.9,2.42484255]
[1760511652931,4.904137,4125.9,4124.4,1.92]
[1760511653069,2.498,4125.8,4125.7,2.4238311]
[1760511653272,2.515,4125.8,4125.7,0.4729]
[1760511653514,2.515,4125.8,4125.1,1.92]
[1760511653666,2.515,4125.8,4125.6,2.42385275]
[1760511653872,2.515,4125.8,4125.7,2.4238311]
[1760511654714,0.1611,4126.6,4126.3,2.4234325]
[1760511655019,2.515,4126.5,4126.3,2.4234325]
[1760511655166,2.82857,4126.5,4126.3,2.4234325]
[1760511655374,2.82857,4126.5,4126.1,2.4235404]
[1760511655589,2.82857,4126.5,4125.7,0.4729]
[1760511655774,2.82857,4126.5,4125.8,2.4237262]
[1760511656003,2.82857,4126.5,4125.9,2.423707]
[1760511656313,0.298967,4126.4,4125.9,2.423707]
[1760511656514,0.298967,4126.4,4125.9,2.42369491]
[1760511656885,0.298967,4126.4,4125.7,2.42378856]
[1760511657329,0.298967,4126.4,4125.9,2.42366188]
[1760511657742,0.298967,4126.4,4125.3,1.92]
[1760511658025,0.298967,4126.4,4125.7,2.42380727]
[1760511658189,0.298967,4126.4,4125.3,4.34403141]
[1760511658385,0.57120071,4126.3,4125.4,1.92]
[1760511658714,1.03080071,4126.3,4125.4,1.92]
[1760511658917,1.03080071,4126.3,4124.7,0.4729]
[1760511659116,0.1208,4126.0,4125.4,2.42398953]
[1760511659416,2.511,4125.9,4125.4,2.42398953]
[1760511659620,2.511,4125.9,4125.3,0.1208]
[1760511659817,0.26318,4125.8,4125.3,0.1208]
[1760511660025,2.511,4125.9,4125.5,2.42394733]
[1760511660324,2.184,4125.8,4125.3,2.54481147]
[1760511660525,2.184,4125.8,4125.3,0.1208]
[1760511660703,2.184,4125.8,4125.6,2.4238712]
[1760511661104,2.511,4125.9,4125.3,2.54486222]
[1760511661105,2.511,4125.9,4125.7,2.42378495]
[1760511661492,0.1208,4126.0,4125.3,0.1208]
[1760511661688,1.699,4125.9,4125.8,2.54457235]
[1760511663432,0.1208,4126.5,4125.9,2.42368214]
[1760511663607,2.509,4126.4,4125.9,2.42368214]
[1760511663807,2.509,4126.3,4126.2,2.42349454]
[1760511663989,2.509,4126.3,4125.8,0.1208]
[1760511664395,2.509,4126.3,4126.1,2.42358994]
[1760511664824,2.509,4126.3,4126.0,2.42364015]
[1760511665040,0.4585,4126.2,4125.8,0.1208]
[1760511665240,0.2307,4125.9,4125.4,0.1208]
[1760511665535,2.507,4125.8,4125.4,0.1208]
[1760511665748,2.507,4125.8,4125.4,2.54479505]
[1760511665891,2.507,4125.8,4125.4,0.1208]
[1760511666096,3.15610574,4125.7,4124.9,2.42429502]
[1760511666401,3.15610574,4125.7,4124.9,2.54509523]
[1760511666402,2.54472957,4125.6,4124.9,2.54509523]
[1760511666808,2.54472957,4125.6,4124.9,0.1208]
[1760511667231,0.4585,4125.5,4124.2,0.4729]
[1760511667460,0.1208,4124.9,4124.3,2.4246302]
[1760511667657,2.507,4124.8,4124.2,0.1208]
[1760511667960,2.42441874,4124.7,4124.2,0.1208]
[1760511668144,2.42447752,4124.6,4123.8,0.002]
[1760511668344,0.1208,4124.3,4123.8,0.002]
[1760511668536,2.506,4124.2,4123.8,0.002]
[1760511669324,0.4555,4125.2,4124.1,0.222]
[1760511669553,0.4555,4125.2,4124.1,0.3428]
[1760511669554,0.1208,4124.8,4124.1,0.3428]
[1760511669727,0.07824312,4124.8,4124.3,2.424598]
[1760511670126,2.184,4124.7,4124.1,0.3428]
[1760511670323,2.9509,4124.6,4123.8,0.002]
[1760511670548,0.1208,4124.5,4123.8,0.1228]
[1760511670859,2.4246082,4124.4,4123.8,0.1228]
[1760511671245,2.54535269,4124.5,4123.8,0.1228]
[1760511671862,0.204,4125.6,4124.4,0.2263]
[1760511672158,4.92996962,4125.5,4124.4,0.2263]
[1760511672356,0.55754696,4125.4,4124.7,2.42436654]
[1760511672549,0.55754696,4125.4,4124.6,2.42446387]
[1760511672724,0.55754696,4125.4,4124.7,2.42440355]
[1760511672924,2.507,4125.3,4125.0,2.42418812]
[1760511673158,2.507,4125.3,4125.1,2.42416584]
[1760511673359,2.62552152,4126.1,4125.3,2.42402096]
[1760511673559,2.62552152,4126.1,4125.1,0.222]
[1760511673560,2.507,4126.0,4125.4,2.42400023]
[1760511673746,0.51324487,4125.9,4125.4,2.42400023]
[1760511674160,2.507,4125.8,4125.6,2.42385316]
[1760511674362,2.507,4125.8,4125.1,0.222]
[1760511674562,2.507,4125.7,4125.5,2.42390159]
[1760511674861,2.507,4125.7,4125.5,2.42391727]
[1760511675162,2.42332359,4126.6,4125.1,0.222]
[1760511675363,2.42307557,4127.0,4125.4,2.42400736]
[1760511675592,2.508,4126.7,4126.1,2.42359344]
[1760511675863,2.9126,4126.7,4125.5,0.456]
[1760511676167,5.33585011,4126.7,4125.9,2.42370494]
[1760511676459,2.9126,4126.7,4126.1,2.42357964]
[1760511676652,2.508,4126.7,4126.1,2.42357964]
[1760511676856,4.93125011,4126.7,4125.9,2.42366046]
[1760511677250,3.2978532,4126.7,4125.5,0.456]
[1760511677453,0.2083,4125.6,4124.4,0.2263]
[1760511677767,2.506,4125.5,4125.0,2.42423306]
[1760511678766,0.3801261,4126.5,4125.1,0.678]
[1760511678931,2.42344159,4126.4,4125.1,0.678]
[1760511679259,2.509,4126.3,4125.7,2.42381789]
[1760511679671,2.509,4126.3,4125.6,2.42388426]
[1760511679968,4.93248191,4126.3,4125.6,2.42388426]
[1760511680171,1.092,4126.2,4125.6,2.42388426]
[1760511680470,0.32042677,4126.4,4125.9,2.42370086]
[1760511680673,0.4007,4126.7,4125.7,2.42378116]
[1760511680845,2.508,4126.6,4125.4,2.42397362]
[1760511681035,2.508,4126.6,4125.2,1.92]
[1760511681036,2.42358726,4126.2,4125.2,1.92]
[1760511681246,5.33230405,4126.1,4124.7,2.42441874]
[1760511681438,2.42382644,4125.8,4124.9,2.42424578]
[1760511681742,2.42382644,4125.8,4124.7,1.92]
[1760511681743,0.2122,4125.7,4125.0,2.42418387]
[1760511681943,2.508,4125.6,4125.0,0.1208]
[1760511682141,0.1208,4125.7,4125.2,2.42412489]
[1760511682343,0.1208,4125.7,4125.1,0.222]
[1760511682344,2.508,4125.6,4125.4,0.1208]
[1760511682545,2.508,4125.5,4125.4,0.1208]
[1760511682956,2.508,4125.5,4125.1,2.42416672]
[1760511683157,0.1208,4125.8,4125.1,2.76697219]
[1760511683352,2.509,4125.7,4125.4,0.1208]
[1760511683557,2.509,4125.7,4125.2,2.42412438]
[1760511683777,2.9042,4125.7,4125.2,2.42411392]
[1760511684090,3.07546243,4125.7,4125.2,2.42412095]
[1760511684387,2.509,4125.7,4125.3,2.4240211]
[1760511684546,0.3952,4125.6,4125.1,0.1208]
[1760511685150,2.509,4125.7,4125.1,2.54494475]
[1760511685380,2.509,4125.7,4125.4,2.42400704]
[1760511685583,2.509,4125.7,4125.4,2.42395442]
[1760511685968,2.509,4125.7,4125.3,2.42405376]
[1760511686352,2.509,4125.7,4125.1,0.1208]
[1760511686353,0.3934,4125.6,4125.1,0.1208]
[1760511686553,0.1208,4125.4,4124.7,0.1208]
[1760511686888,0.2368,4124.8,4124.3,2.42462729]
[1760511687064,2.6278,4124.7,4124.0,0.1208]
[1760511687251,2.9004,4124.7,4124.0,2.42477866]
[1760511687446,2.9004,4124.7,4124.2,2.42470852]
[1760511687447,2.507,4124.7,4124.2,2.42470852]
[1760511687981,2.507,4124.7,4124.4,2.42455361]
[1760511688492,2.507,4124.7,4124.3,2.42464843]
[1760511688653,2.508,4124.7,4124.4,2.4245824]
[1760511689370,2.66098886,4125.1,4124.4,2.4245824]
[1760511689686,2.508,4124.7,4124.4,2.4245824]
[1760511689857,2.508,4124.7,4124.2,2.42467377]
[1760511690058,6.41781874,4124.7,4123.9,2.42487355]
[1760511690286,5.32581874,4124.7,4123.8,0.002]
[1760511691658,7.24581874,4124.7,4123.8,0.002]
[1760511691876,9.36127074,4124.7,4123.8,0.002]
[1760511692087,8.42437612,4124.7,4123.8,0.002]
[1760511692472,9.05797612,4124.7,4123.8,0.002]
[1760511693096,11.21967312,4124.7,4123.8,0.002]
[1760511693487,9.05797612,4124.7,4123.8,0.002]
[1760511693872,6.54997612,4124.7,4123.8,0.002]
[1760511694078,9.05597612,4124.7,4123.8,0.002]
[1760511694497,5.91637612,4124.7,4123.8,0.002]
[1760511694701,8.42237612,4124.7,4123.8,0.002]
[1760511695685,5.91637612,4124.7,4123.8,0.002]
[1760511695995,8.42137612,4124.7,4123.8,0.002]
[1760511697071,8.42137612,4124.7,4124.6,0.458]
[1760511697072,2.505,4124.7,4124.6,0.458]
[1760511697273,2.505,4124.7,4124.6,4.92327752]
[1760511697993,0.1208,4125.6,4125.3,2.4240305]
[1760511698299,2.51,4125.5,4125.3,2.4240305]
[1760511698501,0.1208,4125.6,4125.5,2.42394861]
[1760511698698,2.6308,4125.6,4125.5,2.42394861]
[1760511699275,0.1208,4125.6,4125.5,2.42394861]
[1760511699503,2.6298,4125.6,4125.5,2.87994861]
[1760511699702,2.6298,4125.6,4125.5,0.456]
[1760511699898,2.6298,4125.6,4125.5,2.87994861]
[1760511700203,4.8138,4125.6,4125.4,0.222]
[1760511700774,3.6,4125.5,4125.4,0.222]
[1760511701177,4.0366,4125.5,4124.9,0.1208]
[1760511701505,2.9446,4125.5,4124.9,2.54505172]
[1760511701683,2.9446,4125.5,4124.9,0.1208]
[1760511701885,2.9446,4125.5,4124.6,0.002]
[1760511701886,0.1208,4125.2,4124.6,0.002]
[1760511702081,0.1208,4125.2,4124.8,2.42431921]
[1760511702672,0.1208,4125.2,4124.6,0.002]
[1760511702878,0.1208,4125.0,4124.6,0.002]
[1760511703078,2.507,4124.9,4124.6,0.002]
[1760511703706,2.42441874,4124.7,4124.6,0.002]
[1760511704214,2.76978,4124.9,4124.6,0.002]
[1760511704386,0.4366,4124.7,4124.6,0.002]
[1760511704705,2.86101874,4124.7,4124.6,0.002]
[1760511704909,2.86004896,4124.7,4124.6,0.002]
[1760511705118,3.22983763,4124.7,4124.6,0.002]
[1760511706620,3.86343763,4124.7,4124.6,0.002]
[1760511706822,6.21903763,4124.7,4124.6,0.002]
[1760511709415,8.72403763,4124.7,4124.6,0.002]
[1760511710194,10.90803763,4124.7,4124.6,0.002]
[1760511713035,10.47243763,4124.7,4124.6,0.002]
[1760511713414,5.3226,4124.7,4124.6,0.002]
[1760511713616,2.42393639,4125.6,4124.6,0.002]
[1760511713617,2.42349357,4126.3,4124.6,0.002]
[1760511713818,2.42440513,4124.8,4124.6,0.002]
[1760511714006,2.42423953,4125.1,4124.6,0.002]
[1760511714211,2.503,4125.0,4124.6,0.002]
[1760511714809,2.42440033,4124.8,4124.6,0.002]
[1760511715438,2.503,4124.7,4124.6,0.002]
[1760511715808,2.42425891,4125.0,4124.6,0.4302]
[1760511716012,2.502,4124.7,4124.6,0.4302]
[1760511716539,2.502,4124.7,4124.6,0.002]
[1760511716908,2.502,4124.7,4124.6,0.4302]
[1760511718134,2.502,4124.7,4124.6,0.002]
[1760511718447,2.502,4124.7,4124.6,0.4302]
[1760511718619,5.60511874,4124.7,4124.6,0.002]
[1760511719219,0.2502,4124.7,4124.6,0.002]
[1760511719423,2.502,4124.7,4124.6,0.002]
[1760511720246,4.686,4124.7,4124.6,0.002]
[1760511720742,2.3485,4125.5,4124.7,2.42438174]
[1760511720743,0.1208,4125.5,4124.7,2.42438174]
[1760511720918,2.503,4125.4,4124.6,0.551]
[1760511721321,1.92,4125.3,4124.6,0.002]
[1760511721520,4.97801874,4124.7,4124.6,0.002]
[1760511721719,20.27467374,4124.7,4124.6,0.002]
[1760511721932,20.27322774,4124.7,4124.6,0.002]
[1760511722115,20.65350831,4124.7,4124.6,0.002]
[1760511722317,22.96129347,4124.7,4124.6,0.002]
[1760511722727,25.64323547,4124.7,4124.6,0.002]
[1760511723316,23.14023547,4124.7,4124.6,0.002]
[1760511723678,16.10782847,4124.7,4124.6,0.002]
[1760511723848,10.59538447,4124.7,4124.6,0.002]
[1760511724029,8.28759931,4124.7,4124.6,0.002]
[1760511724349,11.59204631,4124.7,4124.6,0.002]
[1760511725450,25.13777231,4124.7,4124.6,0.002]
[1760511725817,18.65756731,4124.7,4124.6,0.002]
[1760511726315,8.28759931,4124.7,4124.6,0.002]
[1760511726538,21.23767595,4124.7,4124.6,0.002]
[1760511727849,9.73180795,4124.7,4124.6,0.002]
[1760511728041,7.22569931,4124.7,4124.6,0.002]
[1760511728654,2.501,4124.7,4124.6,0.002]
[1760511728959,2.42434452,4124.9,4124.6,0.4302]
[1760511729259,4.92537703,4124.8,4124.6,0.4302]
[1760511729464,2.42418226,4125.2,4124.6,0.002]
[1760511729662,0.4241,4126.6,4125.3,0.2145]
[1760511729862,0.38018013,4126.2,4125.3,0.2145]
[1760511730061,2.42382746,4125.8,4125.3,0.2145]
[1760511730264,2.4238996,4125.6,4125.3,0.2145]
[1760511730460,2.5,4125.5,4125.3,0.2145]
[1760511731151,2.5,4125.5,4125.4,0.4607]
[1760511731350,2.5,4125.5,4125.3,0.2145]
[1760511731741,2.5,4125.5,4125.4,0.4607]
[1760511732064,2.6208,4125.5,4125.4,0.4607]
[1760511732432,2.6218,4125.5,4125.4,0.4607]
[1760511733044,0.1218,4125.5,4125.3,0.2145]
[1760511733245,4.92205091,4125.4,4124.4,2.42459003]
[1760511733564,0.1208,4125.3,4124.7,3.12777565]
[1760511733727,0.1208,4125.3,4125.2,0.222]
[1760511734164,0.1208,4125.3,4124.8,0.6827]
[1760511734763,0.1208,4125.3,4124.9,0.4607]
[1760511735242,0.1208,4125.3,4125.0,0.4607]
[1760511735642,0.1208,4125.3,4125.1,0.4607]
[1760511736047,0.1208,4125.3,4125.2,0.4607]
[1760511736441,0.1208,4125.3,4124.8,2.64631803]
[1760511736646,0.1208,4125.3,4124.9,0.4607]
[1760511737357,0.1208,4125.3,4125.0,0.4607]
[1760511737530,0.1208,4125.3,4125.1,0.4607]
[1760511739487,0.001,4125.5,4125.0,2.42419073]
[1760511739488,0.001,4125.5,4125.2,2.88482489]